[Event "2nd Goa GM Open 2019"]
[Site "Goa"]
[Date "2019.06.25"]
[Round "10.19"]
[White "Srija, Seshadri"]
[Black "Sardana, Rishi"]
[Result "1/2-1/2"]
[ECO "C50"]
[WhiteElo "2174"]
[BlackElo "2428"]
[Annotator "NA RC"]
[PlyCount "216"]
[EventDate "2019.06.17"]
[EventType "swiss"]
[EventCountry "IND"]
[SourceTitle "playchess.com"]
[Source "ChessBase"]
[SourceQuality "1"]
[TimeControl "5400+30"]

1. e4 {[%emt 0:00:00]} e5 {[%emt 0:00:31]} 2. Nf3 {[%emt 0:00:00]} Nc6 {[%emt 0:00:04]} 3. Bc4 {[%emt 0:00:00]} Bc5 {[%emt 0:00:06]} 4. d3 {[%emt 0:00:07]} Nf6 {[%emt 0:00:07]} 5. O-O {[%emt 0:00:15]} d6 {[%emt 0:00:05]} 6. c3 {[%emt 0:00:12]} a5 {[%emt 0:00:41]} 7. a4 {[%emt 0:00:35]} h6 {[%emt 0:01:57]} 8. Re1 {[%emt 0:02:52]} O-O {[%emt 0:00:13]} 9. Nbd2 {[%emt 0:01:04]} Be6 {[%emt 0:00:25]} 10. Qb3 {[%emt 0:02:17]} Qd7 {[%emt 0:02:19]} 11. Nf1 {[%emt 0:06:54]} Ne7 {[%emt 0:04:09]} 12. d4 {[%emt 0:04:58]} exd4 {[%emt 0:08:25]} 13. cxd4 {[%emt 0:00:27]} Bxc4 {[%emt 0:02:24]} 14. Qxc4 {[%emt 0:00:08]} Bb4 {[%emt 0:00:24]} 15. Bd2 {[%emt 0:02:40]} Bxd2 {[%emt 0:04:01]} 16. N1xd2 {[%emt 0:00:08]} d5 {[%emt 0:01:20]} 17. exd5 {[%emt 0:02:19]} Nexd5 {[%emt 0:01:45]} 18. Ne5 {[%emt 0:02:11]} Qd6 {[%emt 0:02:50]} 19. Qc1 {[%emt 0:13:43]} Nb4 {[%emt 0:11:15]} 20. Ndf3 {[%emt 0:02:16]} Rfe8 {[%emt 0:03:59]} 21. Ra3 {[%emt 0:04:24]} Nfd5 {[%emt 0:11:15]} 22. Nh4 {[%emt 0:07:25]} Nc6 {[%emt 0:16:36]} 23. Nf5 {[%emt 0:14:24]} Qf6 {[%emt 0:00:08]} 24. Nxg7 {[%emt 0:02:48]} Kxg7 {[%emt 0:05:31]} 25. Rg3+ {[%emt 0:00:25]} Kh7 {[%emt 0:10:11]} 26. Qb1+ {[%emt 0:02:15]} Kh8 {[%emt 0:00:05]} 27. Rf3 {[%emt 0:00:10]} Qg7 {[%emt 0:02:11]} 28. Rxf7 {[%emt 0:08:13]} Rxe5 {[%emt 0:00:15]} 29. Rxg7 {[%emt 0:00:09]} Rxe1+ {[%emt 0:00:06]} 30. Qxe1 {[%emt 0:00:04]} Kxg7 31. Qe4 {[%emt 0:01:50]} Rd8 {[%emt 0:00:52]} 32. Qg4+ {[%emt 0:00:31]} Kf7 {[%emt 0:00:17]} 33. h3 {[%emt 0:00:50]} Rd6 {[%emt 0:01:10]} 34. Qf5+ {[%emt 0:00:51]} Kg7 {[%emt 0:01:25]} 35. Qg4+ {[%emt 0:00:31]} Kf7 {[%emt 0:00:38]} 36. Qf5+ {[%emt 0:00:33]} Kg7 {[%emt 0:00:05]} 37. Qg4+ {[%emt 0:00:16]} Rg6 {[%emt 0:00:15]} 38. Qd7+ {[%emt 0:00:47]} Nce7 {[%emt 0:00:04]} 39. h4 {[%emt 0:03:09]} h5 {[%emt 0:00:43]} 40. g3 {[%emt 0:01:00]} b6 {[%emt 0:00:10]} 41. Qe8 {[%emt 0:00:18]} c6 {[%emt 0:00:20]} 42. Kf1 {[%emt 0:00:57]} Rh6 {[%emt 0:01:28]} 43. Kg1 {[%emt 0:00:47]} Rh8 {[%emt 0:01:09]} 44. Qd7 {[%emt 0:00:03]} Rh6 {[%emt 0:01:10]} 45. Qe8 {[%emt 0:00:12]} Rh8 {[%emt 0:02:34]} 46. Qd7 {[%emt 0:00:02]} Kf7 {[%emt 0:00:57]} 47. Qd6 {[%emt 0:00:18]} Rh7 {[%emt 0:00:09]} 48. Kf1 {[%emt 0:01:15]} Ke8 {[%emt 0:00:47]} 49. Qb8+ {[%emt 0:00:34]} Kd7 50. Qb7+ {[%emt 0:00:11]} Ke6 {[%emt 0:00:28]} 51. Qb8 {[%emt 0:00:05]} Kf7 {[%emt 0:01:06]} 52. Qd6 {[%emt 0:00:07]} Rh8 {[%emt 0:01:47]} 53. Kg1 {[%emt 0:00:52]} Re8 {[%emt 0:01:36]} 54. Qe5 {[%emt 0:00:54]} Nf6 {[%emt 0:00:05]} 55. Qc7 {[%emt 0:00:08]} Nfd5 {[%emt 0:00:02]} 56. Qe5 {[%emt 0:00:05]} Nf6 {[%emt 0:00:02]} 57. Qc7 {[%emt 0:00:09]} b5 {[%emt 0:01:52]} 58. axb5 {[%emt 0:01:42]} cxb5 {[%emt 0:00:01]} 59. Qxa5 {[%emt 0:00:11]} Rb8 {[%emt 0:00:04]} 60. Qc7 {[%emt 0:01:03]} Ra8 {[%emt 0:00:15]} 61. Qb7 {[%emt 0:00:16]} Ra1+ {[%emt 0:00:16]} 62. Kg2 {[%emt 0:00:05]} Rd1 {[%emt 0:00:29]} 63. Qxb5 {[%emt 0:00:47]} Rxd4 {[%emt 0:00:06]} 64. Qc5 {[%emt 0:01:16]} Rd5 {[%emt 0:00:29]} 65. Qc4 {[%emt 0:00:53]} Nf5 {[%emt 0:00:06]} 66. b4 {[%emt 0:01:01]} Nd6 {[%emt 0:00:02]} 67. Qc2 {[%emt 0:02:07]} Ke6 {[%emt 0:00:30]} 68. f3 {[%emt 0:01:22]} Rb5 {[%emt 0:00:42]} 69. Qa2+ {[%emt 0:01:03]} Ke7 {[%emt 0:02:37]} 70. Qa7+ {[%emt 0:01:00]} Nd7 {[%emt 0:00:18]} 71. Qd4 {[%emt 0:01:02]} Re5 {[%emt 0:00:15]} 72. Qd3 {[%emt 0:00:28]} Nf6 {[%emt 0:00:23]} 73. Qd2 {[%emt 0:00:28]} Ke6 {[%emt 0:00:53]} 74. Qc2 {[%emt 0:00:47]} Rd5 {[%emt 0:00:59]} 75. Qa2 {[%emt 0:00:43]} Nd7 {[%emt 0:00:26]} 76. Qe2+ {[%emt 0:02:29]} Re5 {[%emt 0:00:04]} 77. Qc2 {[%emt 0:00:22]} Nf6 {[%emt 0:00:10]} 78. Kf2 {[%emt 0:01:19]} Rb5 {[%emt 0:00:36]} 79. Qe2+ {[%emt 0:02:16]} Kd7 {[%emt 0:00:01]} 80. Qb2 {[%emt 0:00:39]} Nd5 {[%emt 0:00:49]} 81. Qd4 {[%emt 0:00:50]} Nxb4 {[%emt 0:00:26]} 82. g4 {[%emt 0:00:12]} hxg4 {[%emt 0:00:14]} 83. Qxg4+ {[%emt 0:00:17]} Ke7 {[%emt 0:00:20]} 84. Qd4 {[%emt 0:01:10]} Nc6 {[%emt 0:00:42]} 85. Qg7+ {[%emt 0:00:25]} Nf7 {[%emt 0:00:15]} 86. Qc3 {[%emt 0:00:32]} Ncd8 {[%emt 0:01:06]} 87. Qc7+ {[%emt 0:00:41]} Kf6 {[%emt 0:00:15]} 88. Qc3+ {[%emt 0:00:36]} Ke7 {[%emt 0:00:12]} 89. Qc7+ {[%emt 0:00:07]} Kf8 {[%emt 0:00:14]} 90. Qc8 {[%emt 0:00:23]} Rd5 {[%emt 0:00:28]} 91. Qg4 {[%emt 0:00:41]} Rd2+ {[%emt 0:00:21]} 92. Kg3 {[%emt 0:00:09]} Rd6 {[%emt 0:00:09]} 93. h5 {[%emt 0:01:04]} Ne6 {[%emt 0:00:41]} 94. Qf5 {[%emt 0:00:47]} Ned8 {[%emt 0:01:08]} 95. Qg4 {[%emt 0:00:20]} Rf6 {[%emt 0:00:26]} 96. Qb4+ {[%emt 0:00:45]} Kg7 {[%emt 0:00:06]} 97. Qd4 {[%emt 0:00:32]} Ne6 {[%emt 0:00:32]} 98. Qg4+ {[%emt 0:00:54]} Kf8 {[%emt 0:00:20]} 99. Qb4+ {[%emt 0:00:26]} Kg8 {[%emt 0:00:23]} 100. Qg4+ {[%emt 0:00:10]} Kh8 {[%emt 0:00:50]} 101. Qe4 {[%emt 0:01:40]} Neg5 {[%emt 0:00:51]} 102. Qg4 {[%emt 0:01:10]} Kh7 {[%emt 0:00:23]} 103. Kg2 {[%emt 0:00:44]} Kh6 {[%emt 0:00:54]} 104. f4 {[%emt 0:00:32]} Ne6 {[%emt 0:00:33]} 105. Kg3 {[%emt 0:00:30]} Nd6 {[%emt 0:01:27]} 106. Qf3 {[%emt 0:02:12]} Nf5+ {[%emt 0:00:26]} 107. Kg4 {[%emt 0:00:05]} Nfg7 {[%emt 0:03:16]} 108. Qe3 {[%emt 0:00:52]} Rxf4+ {[%emt 0:01:21]} 1/2-1/2

[Event "2nd Goa GM Open 2019"]
[Site "Goa"]
[Date "2019.06.25"]
[Round "10.20"]
[White "Harshavardhan G B"]
[Black "Kamdar Udit"]
[Result "1-0"]
[ECO "B14"]
[WhiteElo "2406"]
[BlackElo "2087"]
[Annotator "NA"]
[PlyCount "98"]
[EventDate "2019.06.17"]
[EventType "swiss"]
[EventCountry "IND"]
[SourceTitle "playchess.com"]
[Source "ChessBase"]
[SourceQuality "1"]
[TimeControl "5400+30"]

1. d4 {[%emt 0:00:00]} c6 {[%emt 0:01:54]} 2. e4 {[%emt 0:00:00]} d5 {[%emt 0:00:05]} 3. exd5 {[%emt 0:00:04]} cxd5 {[%emt 0:00:02]} 4. c4 {[%emt 0:00:07]} g6 {[%emt 0:02:00]} 5. Nc3 {[%emt 0:00:11]} Nf6 {[%emt 0:00:13]} 6. cxd5 {[%emt 0:00:12]} Bg7 {[%emt 0:01:39]} 7. Bb5+ {[%emt 0:00:06]} Nbd7 {[%emt 0:00:24]} 8. d6 {[%emt 0:00:04]} O-O {[%emt 0:15:43]} 9. dxe7 {[%emt 0:02:50]} Qxe7+ {[%emt 0:00:15]} 10. Nge2 {[%emt 0:00:06]} a6 {[%emt 0:02:48]} 11. Bd3 {[%emt 0:00:07]} b5 {[%emt 0:04:51]} 12. O-O {[%emt 0:05:59]} Bb7 {[%emt 0:02:04]} 13. Nf4 {[%emt 0:07:38]} Nb6 {[%emt 0:03:09]} 14. Re1 {[%emt 0:09:22]} Qb4 {[%emt 0:06:03]} 15. a3 {[%emt 0:06:51]} Qxd4 {[%emt 0:13:11]} 16. Be3 {[%emt 0:00:08]} Qd8 {[%emt 0:14:18]} 17. Bxb5 {[%emt 0:15:21]} Nbd5 {[%emt 0:02:40]} 18. Bf1 {[%emt 0:01:06]} Nxe3 {[%emt 0:09:31]} 19. Qxd8 {[%emt 0:00:43]} Raxd8 {[%emt 0:00:49]} 20. Rxe3 {[%emt 0:02:46]} Bh6 {[%emt 0:02:18]} 21. Re7 {[%emt 0:00:56]} Bc8 {[%emt 0:00:58]} 22. Nd3 {[%emt 0:02:13]} Nd5 {[%emt 0:03:05]} 23. Nxd5 {[%emt 0:02:40]} Rxd5 {[%emt 0:00:02]} 24. Rae1 {[%emt 0:01:43]} Be6 {[%emt 0:07:57]} 25. Rc7 {[%emt 0:20:15]} Bd2 {[%emt 0:02:21]} 26. Rd1 {[%emt 0:02:17]} Bg5 {[%emt 0:00:42]} 27. Rc5 {[%emt 0:00:43]} Rfd8 {[%emt 0:00:44]} 28. Rxd5 {[%emt 0:09:17]} Rxd5 {[%emt 0:00:27]} 29. Be2 {[%emt 0:00:10]} Bf6 {[%emt 0:01:28]} 30. b4 {[%emt 0:01:55]} a5 {[%emt 0:01:09]} 31. Nf4 {[%emt 0:01:52]} Rxd1+ {[%emt 0:01:37]} 32. Bxd1 {[%emt 0:00:06]} axb4 {[%emt 0:00:34]} 33. axb4 {[%emt 0:00:08]} Bc4 {[%emt 0:00:46]} 34. Be2 {[%emt 0:00:32]} Bg5 {[%emt 0:00:39]} 35. Nh3 {[%emt 0:00:13]} Bxe2 {[%emt 0:00:17]} 36. Nxg5 {[%emt 0:00:04]} f5 {[%emt 0:00:25]} 37. f4 {[%emt 0:00:27]} h6 {[%emt 0:00:12]} 38. Ne6 {[%emt 0:00:27]} Kf7 {[%emt 0:00:17]} 39. Nd4 {[%emt 0:00:03]} Bd3 {[%emt 0:00:30]} 40. Kf2 {[%emt 0:00:09]} Ke7 {[%emt 0:00:19]} 41. Ke3 {[%emt 0:00:36]} Be4 {[%emt 0:00:43]} 42. Nf3 {[%emt 0:03:05]} Kd6 {[%emt 0:00:23]} 43. g3 {[%emt 0:00:47]} Bc6 {[%emt 0:01:21]} 44. Ne5 {[%emt 0:00:32]} Be8 {[%emt 0:00:01]} 45. Kd4 {[%emt 0:00:07]} g5 {[%emt 0:00:07]} 46. Nc4+ {[%emt 0:00:04]} Kc6 {[%emt 0:00:24]} 47. b5+ {[%emt 0:00:04]} Kc7 {[%emt 0:00:36]} 48. b6+ {[%emt 0:00:04]} Kb8 {[%emt 0:00:34]} 49. Nd6 {[%emt 0:00:03]} Bd7 {[%emt 0:00:09] Ke4} 1-0

[Event "2nd Goa GM Open 2019"]
[Site "Goa"]
[Date "2019.06.25"]
[Round "10.21"]
[White "Deepan Chakkravarthy J."]
[Black "Priyanka, K."]
[Result "1-0"]
[ECO "B91"]
[WhiteElo "2557"]
[BlackElo "2053"]
[Annotator "ChessBase"]
[PlyCount "69"]
[EventDate "2019.06.17"]
[EventType "swiss"]
[EventCountry "IND"]
[SourceTitle "playchess.com"]
[Source "ChessBase"]
[SourceQuality "1"]
[TimeControl "5400+30"]

1. e4 c5 {[%emt 0:00:17]} 2. Nf3 {[%emt 0:01:36]} d6 {[%emt 0:00:05]} 3. d4 {[%emt 0:03:28]} cxd4 {[%emt 0:00:08]} 4. Nxd4 {[%emt 0:00:03]} Nf6 {[%emt 0:00:07]} 5. Nc3 {[%emt 0:00:02]} a6 {[%emt 0:00:15]} 6. g3 {[%emt 0:01:23]} e5 {[%emt 0:03:37]} 7. Nf3 {[%emt 0:00:03]} Be7 {[%emt 0:03:24]} 8. Bg2 {[%emt 0:00:28]} Be6 {[%emt 0:01:51]} 9. Nh4 {[%emt 0:00:09]} Nc6 {[%emt 0:09:56]} 10. Nf5 {[%emt 0:00:37]} Bf8 {[%emt 0:12:34]} 11. O-O {[%emt 0:02:12]} b5 {[%emt 0:03:47]} 12. Bg5 {[%emt 0:06:04]} b4 {[%emt 0:06:09]} 13. Nd5 {[%emt 0:05:01]} Bxd5 {[%emt 0:01:42]} 14. exd5 {[%emt 0:00:14]} Ne7 {[%emt 0:06:05]} 15. Bxf6 {[%emt 0:06:05]} gxf6 {[%emt 0:00:22]} 16. Be4 {[%emt 0:02:04]} Nxf5 {[%emt 0:05:36]} 17. Bxf5 {[%emt 0:00:22]} h5 {[%emt 0:01:09]} 18. h4 {[%emt 0:02:18]} Qb6 {[%emt 0:01:07]} 19. c3 {[%emt 0:00:16]} Rb8 {[%emt 0:03:22]} 20. cxb4 {[%emt 0:00:25]} Qxb4 {[%emt 0:00:13]} 21. Rc1 {[%emt 0:00:02]} Be7 {[%emt 0:00:39]} 22. b3 {[%emt 0:02:16]} Bd8 {[%emt 0:01:22]} 23. Rc4 {[%emt 0:00:02]} Qb7 {[%emt 0:00:54]} 24. Rc6 {[%emt 0:00:06]} Ke7 {[%emt 0:00:16]} 25. Qf3 {[%emt 0:03:43]} Bb6 {[%emt 0:01:27]} 26. Rfc1 {[%emt 0:00:07]} a5 {[%emt 0:02:17]} 27. Kg2 {[%emt 0:00:22]} Ra8 {[%emt 0:05:29]} 28. R1c4 {[%emt 0:03:35]} Rad8 {[%emt 0:01:40]} 29. b4 {[%emt 0:01:14]} Ra8 {[%emt 0:02:01]} 30. a4 {[%emt 0:08:23]} Qa7 {[%emt 0:04:12]} 31. b5 {[%emt 0:05:53]} Qb7 {[%emt 0:02:29]} 32. Rxd6 {[%emt 0:01:18]} Kxd6 {[%emt 0:00:48]} 33. Qa3+ {[%emt 0:00:17]} Kxd5 {[%emt 0:00:23]} 34. Qd3+ {[%emt 0:00:16]} Bd4 {[%emt 0:00:08]} 35. Be4+ {[%emt 0:00:06]} 1-0

[Event "2nd Goa GM Open 2019"]
[Site "Goa"]
[Date "2019.06.25"]
[Round "10.22"]
[White "Fier, Alexandr"]
[Black "Rahul Srivatshav P"]
[Result "1-0"]
[ECO "B48"]
[WhiteElo "2543"]
[BlackElo "2395"]
[Annotator "ChessBase"]
[PlyCount "77"]
[EventDate "2019.06.17"]
[EventType "swiss"]
[EventCountry "IND"]
[SourceTitle "playchess.com"]
[Source "ChessBase"]
[SourceQuality "1"]
[TimeControl "5400+30"]

1. e4 {[%emt 0:00:00]} c5 {[%emt 0:00:38]} 2. Nf3 {[%emt 0:00:04]} e6 {[%emt 0:00:05]} 3. d4 {[%emt 0:00:03]} cxd4 {[%emt 0:00:06]} 4. Nxd4 {[%emt 0:00:03]} Nc6 {[%emt 0:00:06]} 5. Nc3 {[%emt 0:00:03]} Qc7 {[%emt 0:00:06]} 6. Be3 {[%emt 0:00:03]} a6 {[%emt 0:00:05]} 7. Qf3 {[%emt 0:00:03]} h5 {[%emt 0:00:05]} 8. O-O-O {[%emt 0:00:40]} Ne5 {[%emt 0:00:12]} 9. Qg3 {[%emt 0:00:13]} h4 {[%emt 0:00:04]} 10. Qh3 {[%emt 0:00:03]} Ng6 {[%emt 0:00:07]} 11. Qg4 {[%emt 0:10:51]} Nf6 {[%emt 0:05:54]} 12. Qe2 {[%emt 0:00:04]} Bb4 {[%emt 0:06:11]} 13. Bd2 {[%emt 0:00:51]} b5 {[%emt 0:04:20]} 14. Re1 {[%emt 0:04:13]} Bb7 {[%emt 0:18:20]} 15. f3 {[%emt 0:03:06]} Rh5 {[%emt 0:06:16]} 16. Kb1 {[%emt 0:00:54]} Rc8 {[%emt 0:00:16]} 17. Qd1 {[%emt 0:03:06]} Bc5 {[%emt 0:04:17]} 18. Be3 {[%emt 0:03:28]} Bb4 {[%emt 0:01:48]} 19. Bd2 {[%emt 0:00:21]} Bc5 {[%emt 0:01:27]} 20. Be3 {[%emt 0:00:05]} d5 {[%emt 0:00:15]} 21. Bd3 {[%emt 0:02:04]} Ne5 {[%emt 0:03:32]} 22. exd5 {[%emt 0:02:01]} Nxd3 {[%emt 0:03:41]} 23. Qxd3 {[%emt 0:02:50]} Nxd5 {[%emt 0:01:40]} 24. Ne4 {[%emt 0:06:41]} Nxe3 {[%emt 0:02:23]} 25. Nxc5 {[%emt 0:00:48]} Qxc5 {[%emt 0:02:42]} 26. Rxe3 {[%emt 0:01:38]} Rd8 {[%emt 0:01:55]} 27. c3 {[%emt 0:01:50]} Rhd5 {[%emt 0:01:25]} 28. Qh7 {[%emt 0:01:16]} Re5 {[%emt 0:06:39]} 29. Qd3 {[%emt 0:00:00]} Red5 {[%emt 0:00:00]} 30. Qh7 {[%emt 0:01:00]} Re5 {[%emt 0:01:00]} 31. Rd3 {[%emt 0:03:56]} Bd5 {[%emt 0:03:24]} 32. Qxg7 {[%emt 0:03:05]} Qc4 {[%emt 0:04:57]} 33. Kc2 {[%emt 0:00:18]} Qa4+ {[%emt 0:01:50]} 34. Kd2 {[%emt 0:00:04]} Bc4 {[%emt 0:01:20]} 35. Qh8+ {[%emt 0:01:20]} Kd7 {[%emt 0:00:05]} 36. Qxe5 {[%emt 0:00:07]} Bxd3 {[%emt 0:00:04]} 37. Kxd3 {[%emt 0:00:05]} Qxa2 {[%emt 0:00:12]} 38. Ke3 {[%emt 0:01:48]} Qxb2 {[%emt 0:00:11]} 39. Nxe6 {[%emt 0:00:22]} 1-0

[Event "2nd Goa GM Open 2019"]
[Site "Goa"]
[Date "2019.06.25"]
[Round "10.26"]
[White "Sidhant, Mohapatra"]
[Black "Neverov, Valeriy"]
[Result "1/2-1/2"]
[ECO "B51"]
[WhiteElo "2351"]
[BlackElo "2470"]
[Annotator "ChessBase"]
[PlyCount "76"]
[EventDate "2019.06.17"]
[EventType "swiss"]
[EventCountry "IND"]
[SourceTitle "playchess.com"]
[Source "ChessBase"]
[SourceQuality "1"]
[TimeControl "5400+30"]

1. e4 {[%emt 0:00:00]} c5 {[%emt 0:00:00]} 2. Nf3 {[%emt 0:00:00]} d6 {[%emt 0:00:00]} 3. Bb5+ {[%emt 0:00:44]} Nd7 {[%emt 0:00:00]} 4. O-O {[%emt 0:01:37]} a6 {[%emt 0:01:24]} 5. Bd3 {[%emt 0:00:32]} Ngf6 {[%emt 0:21:22]} 6. c3 {[%emt 0:02:29]} b5 {[%emt 0:05:21]} 7. Bc2 {[%emt 0:01:53]} Bb7 {[%emt 0:00:52]} 8. Re1 {[%emt 0:00:07]} Rc8 {[%emt 0:02:38]} 9. a4 {[%emt 0:01:12]} b4 {[%emt 0:01:38]} 10. d3 {[%emt 0:01:20]} g6 {[%emt 0:01:36]} 11. a5 {[%emt 0:02:13]} bxc3 {[%emt 0:04:12]} 12. bxc3 {[%emt 0:00:42]} Bg7 {[%emt 0:00:03]} 13. Nbd2 {[%emt 0:05:30]} O-O {[%emt 0:00:37]} 14. h3 {[%emt 0:01:05]} Ne8 {[%emt 0:05:16]} 15. d4 {[%emt 0:02:51]} Nc7 {[%emt 0:01:14]} 16. Bd3 {[%emt 0:01:38]} Nb5 {[%emt 0:02:50]} 17. Bb2 {[%emt 0:00:00]} Ba8 {[%emt 0:07:07]} 18. Qb3 {[%emt 0:08:31]} Rb8 {[%emt 0:00:59]} 19. Qa2 {[%emt 0:00:09]} e5 {[%emt 0:04:10]} 20. d5 {[%emt 0:04:25]} f5 {[%emt 0:00:37]} 21. c4 {[%emt 0:00:37]} Nd4 {[%emt 0:00:27]} 22. Bxd4 {[%emt 0:03:54]} cxd4 {[%emt 0:00:40]} 23. Qc2 {[%emt 0:01:02]} Nc5 {[%emt 0:04:04]} 24. Ra3 {[%emt 0:05:39]} Qf6 {[%emt 0:11:48]} 25. Nb3 {[%emt 0:03:23]} Nxd3 {[%emt 0:05:15]} 26. Qxd3 {[%emt 0:00:06]} Bb7 {[%emt 0:00:04]} 27. Nbd2 {[%emt 0:07:05]} Bc8 {[%emt 0:00:10]} 28. Rb3 {[%emt 0:00:14]} Rxb3 {[%emt 0:01:16]} 29. Qxb3 {[%emt 0:00:11]} Bh6 {[%emt 0:00:45]} 30. Qb6 {[%emt 0:02:16]} Bf4 {[%emt 0:03:28]} 31. c5 {[%emt 0:01:56]} dxc5 {[%emt 0:00:45]} 32. Qxc5 {[%emt 0:00:06]} Bd7 {[%emt 0:01:36]} 33. Qc7 {[%emt 0:01:49]} Bb5 {[%emt 0:04:24]} 34. exf5 {[%emt 0:03:26]} gxf5 {[%emt 0:00:21]} 35. Nb3 {[%emt 0:03:03]} Rf7 {[%emt 0:07:53]} 36. Qb8+ {[%emt 0:00:25]} Rf8 {[%emt 0:00:03]} 37. Qc7 {[%emt 0:00:07]} Rf7 {[%emt 0:02:35]} 38. Qb8+ {[%emt 0:00:17]} Rf8 {[%emt 0:00:13]} 1/2-1/2

[Event "2nd Goa GM Open 2019"]
[Site "Goa"]
[Date "2019.06.25"]
[Round "10.27"]
[White "Nguyen, Van Huy"]
[Black "Saurabh Anand"]
[Result "1/2-1/2"]
[ECO "E04"]
[WhiteElo "2456"]
[BlackElo "2351"]
[Annotator "ChessBase"]
[PlyCount "71"]
[EventDate "2019.06.17"]
[EventType "swiss"]
[EventCountry "IND"]
[SourceTitle "playchess.com"]
[Source "ChessBase"]
[SourceQuality "1"]
[TimeControl "5400+30"]

1. d4 {[%emt 0:00:16]} d5 {[%emt 0:00:00]} 2. Nf3 {[%emt 0:00:07]} Nf6 {[%emt 0:00:03]} 3. c4 {[%emt 0:00:04]} e6 {[%emt 0:00:25]} 4. g3 {[%emt 0:00:07]} dxc4 {[%emt 0:00:16]} 5. Bg2 {[%emt 0:00:15]} a6 {[%emt 0:00:12]} 6. O-O {[%emt 0:01:18]} Nc6 {[%emt 0:00:06]} 7. e3 {[%emt 0:01:15]} Bd7 {[%emt 0:00:35]} 8. Qe2 {[%emt 0:00:43]} Bd6 {[%emt 0:00:13]} 9. Rd1 {[%emt 0:01:56]} O-O {[%emt 0:00:57]} 10. Qxc4 {[%emt 0:00:45]} Rb8 {[%emt 0:00:36]} 11. Nbd2 {[%emt 0:01:03]} Qe7 {[%emt 0:00:38]} 12. b3 {[%emt 0:03:36]} e5 {[%emt 0:02:20]} 13. Bb2 {[%emt 0:02:11]} e4 {[%emt 0:00:47]} 14. Ne5 {[%emt 0:10:52]} Nxe5 {[%emt 0:01:21]} 15. dxe5 {[%emt 0:00:26]} Bxe5 {[%emt 0:00:06]} 16. Bxe5 {[%emt 0:00:11]} Qxe5 {[%emt 0:00:06]} 17. Nxe4 {[%emt 0:00:11]} Nxe4 {[%emt 0:01:17]} 18. Qxe4 {[%emt 0:01:57]} Qxe4 {[%emt 0:01:17]} 19. Bxe4 {[%emt 0:00:17]} Rfd8 {[%emt 0:02:56]} 20. Rd4 {[%emt 0:09:12]} Kf8 {[%emt 0:01:23]} 21. Rad1 {[%emt 0:19:09]} Ke7 {[%emt 0:00:19]} 22. f4 {[%emt 0:01:26]} h6 {[%emt 0:00:26]} 23. Bf3 {[%emt 0:05:06]} f6 {[%emt 0:01:49]} 24. Kf2 {[%emt 0:03:57]} c6 {[%emt 0:04:48]} 25. Re4+ {[%emt 0:03:00]} Kf8 {[%emt 0:01:19]} 26. Red4 {[%emt 0:00:56]} Ke7 {[%emt 0:00:16]} 27. Re4+ {[%emt 0:00:49]} Kf8 {[%emt 0:00:12]} 28. b4 {[%emt 0:00:29]} Bf5 {[%emt 0:07:14]} 29. Red4 {[%emt 0:00:17]} Rxd4 {[%emt 0:00:34]} 30. Rxd4 {[%emt 0:00:23]} Ke7 {[%emt 0:00:07]} 31. e4 {[%emt 0:01:10]} Be6 {[%emt 0:00:08]} 32. a4 {[%emt 0:00:07]} Rc8 {[%emt 0:00:25]} 33. e5 {[%emt 0:03:23]} fxe5 {[%emt 0:05:51]} 34. fxe5 {[%emt 0:01:09]} b5 {[%emt 0:01:55]} 35. axb5 {[%emt 0:06:25]} axb5 {[%emt 0:02:01]} 36. Rd6 {[%emt 0:01:53]} 1/2-1/2

[Event "2nd Goa GM Open 2019"]
[Site "Goa"]
[Date "2019.06.25"]
[Round "10.28"]
[White "Pranav Anand"]
[Black "Himanshu, Sharma"]
[Result "1/2-1/2"]
[ECO "D11"]
[WhiteElo "2340"]
[BlackElo "2446"]
[Annotator "NA"]
[PlyCount "94"]
[EventDate "2019.06.17"]
[EventType "swiss"]
[EventCountry "IND"]
[SourceTitle "playchess.com"]
[Source "ChessBase"]
[SourceQuality "1"]
[TimeControl "5400+30"]

1. d4 {[%emt 0:00:00]} Nf6 {[%emt 0:03:24]} 2. c4 {[%emt 0:00:00]} c6 {[%emt 0:00:08]} 3. Nf3 {[%emt 0:00:01]} d5 {[%emt 0:00:07]} 4. e3 {[%emt 0:00:03]} a6 {[%emt 0:02:56]} 5. Nbd2 {[%emt 0:00:14]} Bf5 {[%emt 0:00:51]} 6. Nh4 {[%emt 0:00:28]} Bg6 {[%emt 0:02:32]} 7. Be2 {[%emt 0:06:43]} e6 {[%emt 0:00:25]} 8. O-O {[%emt 0:01:32]} Nbd7 {[%emt 0:00:16]} 9. g3 {[%emt 0:04:12]} Be7 {[%emt 0:02:11]} 10. Nxg6 {[%emt 0:01:12]} hxg6 {[%emt 0:00:05]} 11. b3 {[%emt 0:00:14]} Qa5 {[%emt 0:04:45]} 12. a3 {[%emt 0:06:00]} Rd8 {[%emt 0:01:35]} 13. b4 {[%emt 0:05:21]} Qc7 {[%emt 0:00:19]} 14. Bb2 {[%emt 0:02:18]} e5 {[%emt 0:08:11]} 15. cxd5 {[%emt 0:11:32]} Nxd5 {[%emt 0:03:53]} 16. dxe5 {[%emt 0:04:02]} Nxe5 {[%emt 0:00:22]} 17. Qc2 {[%emt 0:00:04]} Nf6 {[%emt 0:01:55]} 18. Nc4 {[%emt 0:20:05]} Neg4 {[%emt 0:08:20]} 19. Rfd1 {[%emt 0:16:38]} Rd5 {[%emt 0:09:47]} 20. Bxf6 {[%emt 0:08:28]} Nxf6 {[%emt 0:00:13]} 21. e4 {[%emt 0:00:05]} Rxd1+ {[%emt 0:01:05]} 22. Rxd1 {[%emt 0:00:05]} Qc8 {[%emt 0:03:57]} 23. f4 {[%emt 0:02:40]} Ng4 {[%emt 0:17:08]} 24. Bxg4 {[%emt 0:01:28]} Qxg4 {[%emt 0:00:05]} 25. Ne5 {[%emt 0:01:12]} Qe6 {[%emt 0:01:17]} 26. Rd7 {[%emt 0:03:23]} Bf6 {[%emt 0:02:33]} 27. Rxb7 {[%emt 0:00:41]} Bxe5 {[%emt 0:00:07]} 28. fxe5 {[%emt 0:00:15]} O-O {[%emt 0:00:14]} 29. Rc7 {[%emt 0:01:54]} Qxe5 {[%emt 0:01:15]} 30. Rxc6 {[%emt 0:01:56]} Qa1+ {[%emt 0:00:05]} 31. Kg2 {[%emt 0:00:18]} Qxa3 {[%emt 0:00:32]} 32. Qc4 {[%emt 0:00:07]} a5 {[%emt 0:00:55]} 33. bxa5 {[%emt 0:02:46]} Qxa5 {[%emt 0:00:04]} 34. Rxg6 {[%emt 0:00:07]} Qd2+ {[%emt 0:01:14]} 35. Kh3 {[%emt 0:00:13]} Qd7+ {[%emt 0:00:17]} 36. Rg4 {[%emt 0:00:54]} Rd8 {[%emt 0:08:04]} 37. Qc3 {[%emt 0:00:35]} Qd4 {[%emt 0:00:28]} 38. Qxd4 {[%emt 0:00:34]} Rxd4 {[%emt 0:00:02]} 39. Rf4 {[%emt 0:00:09]} Rd2 {[%emt 0:00:09]} 40. g4 {[%emt 0:00:36]} Re2 {[%emt 0:03:57]} 41. g5 {[%emt 0:00:36]} Kh7 {[%emt 0:02:03]} 42. Kg3 {[%emt 0:00:25]} Kg6 {[%emt 0:00:26]} 43. h4 {[%emt 0:00:07]} Re1 {[%emt 0:00:27]} 44. Kf3 {[%emt 0:00:52]} Rf1+ {[%emt 0:03:13]} 45. Ke3 {[%emt 0:00:22]} Re1+ {[%emt 0:00:24]} 46. Kd4 {[%emt 0:00:17]} Rd1+ {[%emt 0:00:12]} 47. Ke3 {[%emt 0:00:50]} Re1+ {[%emt 0:00:34]} 1/2-1/2